fUST/lending_fUST_20250720
["ID","MTS","AMOUNT","RATE_DAILY","PERIOD"]
[373381116,1752978640939,-460.0,0.00018569,2]
[373381117,1752978640950,-460.0,0.00018569,2]
[373381118,1752978640960,-460.0,0.00018569,2]
[373381119,1752978640970,-460.0,0.00018569,2]
[373381120,1752978640980,-460.0,0.00018569,2]
[373381121,1752978640991,-460.0,0.00018569,2]
[373381122,1752978641002,-460.0,0.00018569,2]
[373381123,1752978641011,-460.0,0.00018569,2]
[373381124,1752978641023,-460.0,0.00018569,2]
[373381125,1752978641033,-460.0,0.00018569,2]
[373381126,1752978641043,-738.46,0.00018569,2]
[373381127,1752978641054,-460.0,0.00018569,2]
[373381128,1752978641065,-460.0,0.00018569,2]
[373381129,1752978641075,-460.0,0.00018569,2]
[373381130,1752978641085,-242.6492073,0.00018569,2]
[373381131,1752978641096,-460.0,0.00018569,2]
[373381132,1752978641106,-460.0,0.00018569,2]
[373381133,1752978641116,-460.0,0.00018569,2]
[373381134,1752978641128,-460.0,0.00018569,2]
[373381135,1752978641138,-460.0,0.00018569,2]
[373381136,1752978641149,-464.03799205,0.00018569,2]
[373381137,1752978641159,-460.0,0.00018569,2]
[373381138,1752978641170,-460.0,0.00018569,2]
[373381139,1752978641181,-460.0,0.00018569,2]
[373381140,1752978641191,-500.0,0.00018569,2]
[373381141,1752978641202,-529.21478293,0.00018569,2]
[373381142,1752978641212,-500.0,0.00018569,2]
[373381143,1752978641222,-631.52059592,0.00018569,2]
[373381144,1752978641233,-500.0,0.00018569,2]
[373381145,1752978641243,-500.0,0.00018569,2]
[373381146,1752978641253,-500.0,0.00018569,2]
[373381147,1752978641264,-500.0,0.00018569,2]
[373381148,1752978641274,-458.0,0.00018569,2]
[373381149,1752978641285,-500.0,0.00018569,2]
[373381150,1752978641295,-500.0,0.00018569,2]
[373381151,1752978641306,-370.29965354,0.00018569,2]
[373381152,1752978641316,-248.21737359,0.00018569,2]
[373381153,1752978641326,-387.44474434,0.00018569,2]
[373381154,1752978641336,-500.0,0.00018569,2]
[373381155,1752978641346,-460.0,0.00018569,2]
[373381156,1752978641355,-564.42,0.00018569,2]
[373381157,1752978641365,-460.0,0.00018569,2]
[373381158,1752978641376,-468.49643586,0.00018569,2]
[373381159,1752978641386,-460.64442319,0.00018569,2]
[373381160,1752978641396,-463.08046798,0.00018569,2]
[373381161,1752978641406,-462.43435061,0.00018569,2]
[373381162,1752978641416,-460.0,0.00018569,2]
[373381163,1752978641427,-460.0,0.00018569,2]
[373381164,1752978641437,-402.3384281,0.00018569,2]
[373381165,1752978641586,-506.97906954,0.00018569,2]
[373381166,1752978641598,-501.49612056,0.00018569,2]
[373381167,1752978641608,-463.38483838,0.00018569,2]
[373381168,1752978641617,-460.0,0.00018569,2]
[373381169,1752978641626,-460.0,0.00018569,2]
[373381170,1752978641636,-487.78805868,0.00018569,2]
[373381171,1752978641646,-460.0,0.00018569,2]
[373381172,1752978641656,-460.0,0.00018569,2]
[373381173,1752978641670,-460.0,0.00018569,2]
[373381174,1752978641679,-460.0,0.00018569,2]
[373381175,1752978641688,-460.0,0.00018569,2]
[373381176,1752978641698,-460.0,0.00018569,2]
[373381177,1752978641707,-463.23412138,0.00018569,2]
[373381178,1752978641717,-460.0,0.00018569,2]
[373381179,1752978641726,-462.18816162,0.0001857,2]
[373381180,1752978641735,-475.07266339,0.0001857,2]
[373381181,1752978641744,-463.86360476,0.0001857,2]
[373381182,1752978641754,-476.00480109,0.0001857,2]
[373381183,1752978641763,-467.11966244,0.0001857,2]
[373381184,1752978641773,-463.74689393,0.0001857,2]
[373381185,1752978641786,-461.43117658,0.0001857,2]
[373381186,1752978641806,-460.0,0.0001857,2]
[373381187,1752978641826,-460.0,0.0001857,2]
[373381188,1752978641846,-460.0,0.0001857,2]
[373381189,1752978641867,-460.0,0.0001857,2]
[373381190,1752978641888,-460.0,0.0001857,2]
[373381191,1752978641913,-460.0,0.0001857,2]
[373381192,1752978641935,-460.0,0.0001857,2]
[373381193,1752978641958,-462.62795806,0.0001857,2]
[373381194,1752978641981,-460.0,0.0001857,2]
[373381195,1752978642002,-500.0,0.0001857,2]
[373381196,1752978642027,-460.0,0.0001857,2]
[373381197,1752978642050,-460.0,0.0001857,2]
[373381198,1752978642072,-500.0,0.0001857,2]
[373381199,1752978642094,-306.36582401,0.0001857,2]
[373381200,1752978642106,-460.0,0.0001857,2]
[373381201,1752978642115,-460.0,0.0001857,2]
[373381202,1752978642125,-460.0,0.0001857,2]
[373381203,1752978642135,-460.0,0.0001857,2]
[373381204,1752978642144,-460.0,0.0001857,2]
[373381205,1752978642153,-460.0,0.0001857,2]
[373381206,1752978642163,-460.0,0.0001857,2]
[373381207,1752978642172,-460.0,0.0001857,2]
[373381208,1752978642181,-460.0,0.0001857,2]
[373381209,1752978642190,-460.0,0.0001857,2]
[373381210,1752978642200,-460.0,0.0001857,2]
[373381211,1752978642209,-460.0,0.0001857,2]
[373381212,1752978642218,-460.0,0.0001857,2]
[373381213,1752978642227,-191.54,0.0001857,2]
[373381214,1752978642238,-460.0,0.0001857,2]
[373381215,1752978642248,-500.0,0.0001857,2]
[373381216,1752978642257,-460.0,0.0001857,2]
[373381217,1752978642266,-752.11,0.0001857,2]
[373381218,1752978642279,-580.5397553,0.0001857,2]
[373381219,1752978642288,-460.0,0.0001857,2]
[373381220,1752978642299,-462.12568775,0.0001857,2]
[373381221,1752978642321,-460.0,0.0001857,2]
[373381222,1752978642342,-460.0,0.0001857,2]
[373381223,1752978642363,-460.0,0.0001857,2]
[373381224,1752978642385,-460.0,0.0001857,2]
[373381225,1752978642406,-460.0,0.0001857,2]
[373381226,1752978642427,-460.0,0.0001857,2]
[373381227,1752978642448,-460.0,0.0001857,2]
[373381228,1752978642469,-460.0,0.0001857,2]
[373381229,1752978642490,-460.0,0.0001857,2]
[373381230,1752978642512,-460.0,0.0001857,2]
[373381231,1752978642536,-460.0,0.0001857,2]
[373381232,1752978642565,-460.0,0.0001857,2]
[373381233,1752978642587,-460.0,0.0001857,2]
[373381234,1752978642608,-460.0,0.0001857,2]
[373381235,1752978642630,-460.0,0.0001857,2]
[373381236,1752978642642,-460.0,0.0001857,2]
[373381237,1752978642651,-460.0,0.0001857,2]
[373381238,1752978642665,-219.79892354,0.00018571,2]
[373381239,1752978642674,-460.0,0.00018571,2]
[373381240,1752978642683,-460.0,0.00018571,2]
[373381241,1752978642692,-460.0,0.00018571,2]
[373381242,1752978642701,-461.9710421,0.00018571,2]
[373381243,1752978642709,-460.0,0.00018571,2]
[373381244,1752978642718,-461.3721009,0.00018571,2]
[373381245,1752978642727,-460.0,0.00018571,2]
[373381246,1752978642736,-460.0,0.00018571,2]
[373381247,1752978642745,-460.0,0.00018571,2]
[373381248,1752978642754,-460.0,0.00018571,2]
[373381249,1752978642763,-462.64437566,0.00018571,2]
[373381250,1752978642771,-460.0,0.00018571,2]
[373381251,1752978642780,-460.0,0.00018571,2]
[373381252,1752978642789,-460.0,0.00018571,2]
[373381253,1752978642798,-321.94627158,0.00018571,2]
[373381254,1752978642807,-460.0,0.00018571,2]
[373381255,1752978642816,-460.0,0.00018571,2]
[373381256,1752978642825,-460.0,0.00018571,2]
[373381257,1752978642834,-462.97687815,0.00018571,2]
[373381258,1752978642843,-460.0,0.00018571,2]
[373381259,1752978642851,-460.0,0.00018571,2]
[373381260,1752978642860,-460.0,0.00018571,2]
[373381261,1752978642870,-461.48969389,0.00018571,2]
[373381262,1752978642880,-461.64465599,0.00018571,2]
[373381263,1752978642889,-229.24292489,0.00018571,2]
[373381264,1752978642898,-460.0,0.00018571,2]
[373381265,1752978642907,-460.0,0.00018571,2]
[373381266,1752978642916,-460.0,0.00018571,2]
[373381267,1752978642924,-460.0,0.00018571,2]
[373381268,1752978642933,-460.0,0.00018571,2]
[373381269,1752978642942,-460.0,0.00018571,2]
[373381271,1752978642951,-460.0,0.00018571,2]
[373381272,1752978642960,-460.0,0.00018571,2]
[373381273,1752978642968,-460.0,0.00018571,2]
[373381274,1752978642977,-340.80816369,0.00018571,2]
[373381275,1752978642986,-460.0,0.00018571,2]
[373381276,1752978642995,-460.0,0.00018571,2]
[373381277,1752978643004,-429.13335672,0.00018571,2]
[373381278,1752978643013,-451.8191811,0.00018571,2]
[373381279,1752978643022,-460.0,0.00018571,2]
[373381280,1752978643031,-460.0,0.00018571,2]
[373381281,1752978643041,-460.0,0.00018571,2]
[373381282,1752978643050,-460.0,0.00018571,2]
[373381283,1752978643059,-460.0,0.00018571,2]
[373381284,1752978643068,-460.0,0.00018571,2]
[373381285,1752978643077,-461.14749535,0.00018571,2]
[373381286,1752978643086,-460.0,0.00018571,2]
[373381287,1752978643095,-460.0,0.00018571,2]
[373381288,1752978643104,-460.0,0.00018571,2]
[373381289,1752978643113,-461.63841077,0.00018571,2]
[373381290,1752978643122,-460.0,0.00018571,2]
[373381291,1752978643131,-460.0,0.00018571,2]
[373381292,1752978643140,-460.0,0.00018571,2]
[373381293,1752978643149,-460.0,0.00018571,2]
[373381294,1752978643159,-460.0,0.00018571,2]
[373381295,1752978643168,-460.0,0.00018571,2]
[373381296,1752978643177,-470.94396115,0.00018571,2]
[373381297,1752978643187,-460.0,0.00018571,2]
[373381298,1752978643196,-504.90166224,0.00018571,2]
[373381299,1752978643205,-460.0,0.00018571,2]
[373381300,1752978643214,-460.0,0.00018571,2]
[373381301,1752978643222,-460.0,0.00018571,2]
[373381302,1752978643231,-460.0,0.00018571,2]
[373381303,1752978643241,-462.00644057,0.00018571,2]
[373381304,1752978643250,-460.0,0.00018571,2]
[373381305,1752978643259,-460.0,0.00018571,2]
[373381306,1752978643268,-500.0,0.00018571,2]
[373381307,1752978643277,-335.27085909,0.00018571,2]
[373381308,1752978643287,-461.59314685,0.00018571,2]
[373381309,1752978643295,-461.19290055,0.00018571,2]
[373381310,1752978643304,-460.0,0.00018571,2]
[373381311,1752978643313,-462.45446784,0.00018571,2]
[373381312,1752978643322,-500.0,0.00018571,2]
[373381313,1752978643331,-461.82654767,0.00018571,2]
[373381314,1752978643340,-500.0,0.00018571,2]
[373381315,1752978643349,-500.0,0.00018571,2]
[373381316,1752978643358,-461.81347459,0.00018571,2]
[373381317,1752978643367,-460.0,0.00018571,2]
[373381318,1752978643376,-461.11412635,0.00018571,2]
[373381319,1752978643385,-460.0,0.00018571,2]
[373381320,1752978643393,-462.5110962,0.00018571,2]
[373381321,1752978643402,-461.51424271,0.00018571,2]
[373381322,1752978643411,-460.0,0.00018571,2]
[373381323,1752978643420,-198.47840836,0.00018571,2]
[373381324,1752978643429,-460.0,0.00018571,2]
[373381325,1752978643438,-460.0,0.00018571,2]
[373381326,1752978643447,-460.50771277,0.00018571,2]
[373381327,1752978643456,-463.01872696,0.00018571,2]
[373381328,1752978643465,-460.0,0.00018571,2]
[373381329,1752978643474,-460.0,0.00018571,2]
[373381330,1752978643483,-460.0,0.00018571,2]
[373381331,1752978643491,-465.35818847,0.00018571,2]
[373381332,1752978643500,-460.0,0.00018571,2]
[373381333,1752978643510,-500.0,0.00018571,2]
[373381334,1752978643519,-500.0,0.00018571,2]
[373381335,1752978643527,-445.38763467,0.00018571,2]
[373381336,1752978643537,-460.0,0.00018571,2]
[373381337,1752978643546,-752.11,0.00018571,2]
[373381338,1752978643555,-752.11,0.00018571,2]
[373381339,1752978643564,-752.11,0.00018571,2]
[373381340,1752978643573,-752.11,0.00018571,2]
[373381341,1752978643583,-752.11,0.00018571,2]
[373381342,1752978643592,-460.0,0.00018571,2]
[373381343,1752978643601,-460.0,0.00018571,2]
[373381344,1752978643610,-432.37312056,0.00018571,2]
[373381345,1752978643618,-460.0,0.00018571,2]
[373381346,1752978643627,-461.97402793,0.00018571,2]
[373381347,1752978643636,-460.0,0.00018571,2]
[373381348,1752978643645,-460.0,0.00018571,2]
[373381349,1752978643654,-460.0,0.00018571,2]
[373381350,1752978643668,-460.0,0.00018571,2]
[373381351,1752978643676,-460.0,0.00018571,2]
[373381352,1752978643685,-460.0,0.00018571,2]
[373381353,1752978643694,-464.22279176,0.00018571,2]
[373381354,1752978643703,-460.0,0.00018571,2]
[373381355,1752978643714,-460.0,0.00018571,2]
[373381356,1752978643723,-463.31614414,0.00018571,2]
[373381357,1752978643732,-460.0,0.00018571,2]
[373381358,1752978643742,-500.0,0.00018571,2]
[373381359,1752978643752,-460.0,0.00018571,2]
[373381360,1752978643760,-461.58991504,0.00018571,2]
[373381361,1752978643769,-466.85210044,0.00018571,2]
[373381362,1752978643778,-460.0,0.00018571,2]
[373381363,1752978643788,-545.85,0.00018571,2]
[373381364,1752978643797,-460.0,0.00018571,2]
[373381365,1752978643806,-460.0,0.00018571,2]
[373381366,1752978643815,-460.0,0.00018571,2]
[373381367,1752978643824,-461.66135259,0.00018571,2]
[373381368,1752978643833,-463.25652406,0.00018571,2]
[373381369,1752978643842,-460.0,0.00018571,2]
[373381370,1752978643852,-460.0,0.00018571,2]
[373381371,1752978643861,-460.0,0.00018571,2]
[373381372,1752978643870,-464.03538361,0.00018571,2]
[373381373,1752978643879,-281.60881534,0.00018571,2]
[373381374,1752978643888,-460.0,0.00018571,2]
[373381375,1752978643897,-460.0,0.00018571,2]
[373381376,1752978643906,-463.68877559,0.00018571,2]
[373381377,1752978643915,-460.0,0.00018571,2]
[373381378,1752978643924,-461.52605128,0.00018571,2]
[373381379,1752978643933,-1511.85,0.00018571,2]
[373381380,1752978643942,-460.0,0.00018571,2]
[373381381,1752978643951,-460.79910657,0.00018571,2]
[373381382,1752978643961,-460.0,0.00018571,2]
[373381383,1752978643970,-462.77438072,0.00018571,2]
[373381384,1752978643979,-461.82330426,0.00018571,2]
[373381385,1752978643988,-460.0,0.00018571,2]
[373381386,1752978643997,-463.10556902,0.00018571,2]
[373381387,1752978644006,-461.48892845,0.00018571,2]
[373381388,1752978644015,-463.48534836,0.00018571,2]
[373381389,1752978644024,-460.0,0.00018571,2]
[373381390,1752978644033,-461.94113741,0.00018571,2]
[373381391,1752978644042,-461.3363393,0.00018571,2]
[373381392,1752978644051,-463.14405445,0.00018571,2]
[373381393,1752978644060,-461.7075258,0.00018571,2]
[373381394,1752978644069,-461.52029606,0.00018571,2]
[373381395,1752978644077,-460.0,0.00018571,2]
[373381396,1752978644086,-461.28079135,0.00018571,2]
[373381397,1752978644096,-460.0,0.00018571,2]
[373381398,1752978644105,-388.76581432,0.00018572,2]
[373381399,1752978644114,-461.46562198,0.00018572,2]
[373381400,1752978644123,-458.40963007,0.00018572,2]
[373381401,1752978644132,-462.99682869,0.00018572,2]
[373381402,1752978644141,-462.02231134,0.00018572,2]
[373381403,1752978644150,-460.0,0.00018572,2]
[373381404,1752978644159,-461.79010418,0.00018572,2]
[373381405,1752978644168,-606.45126784,0.00018572,2]
[373381406,1752978644178,-464.26304543,0.00018572,2]
[373381407,1752978644187,-232.13680699,0.00018572,2]
[373381408,1752978644196,-189.04360871,0.00018572,2]
[373381409,1752978644205,-460.0,0.00018572,2]
[373381410,1752978644214,-460.0,0.00018572,2]
[373381411,1752978644223,-462.92412801,0.00018572,2]
[373381412,1752978644231,-460.0,0.00018572,2]
[373381413,1752978644241,-522.99310749,0.00018572,2]
[373381414,1752978644250,-502.96397336,0.00018573,2]
[373381415,1752978644259,-500.0,0.00018573,2]
[373381416,1752978644268,-500.0,0.00018573,2]
[373381417,1752978644278,-500.0,0.00018573,2]
[373381418,1752978644288,-501.34197685,0.00018573,2]
[373381419,1752978644297,-503.14794569,0.00018573,2]
[373381420,1752978644306,-752.11,0.00018592,2]
[373381421,1752978644315,-460.0,0.00018592,2]
[373381422,1752978644324,-576.5,0.00018592,2]
[373381423,1752978644333,-752.11,0.00018593,2]
[373381424,1752978644342,-752.11,0.00018593,2]
[373381425,1752978644351,-751.33,0.00018593,2]
[373381426,1752978644359,-460.0,0.00018593,2]
[373381427,1752978644368,-460.0,0.00018593,2]
[373381428,1752978644377,-460.0,0.00018593,2]
[373381429,1752978644386,-461.66561877,0.00018594,2]
[373381430,1752978644395,-752.11,0.00018594,2]
[373381431,1752978644404,-752.11,0.00018594,2]
[373381432,1752978644414,-513.12,0.00018594,2]
[373381433,1752978644423,-460.0,0.00018594,2]
[373381434,1752978644432,-752.11,0.00018595,2]
[373381435,1752978644441,-1862.68296211,0.000188,2]
[373381436,1752978644451,-462.49800292,0.00018833,2]
[373381437,1752978644460,-462.55340806,0.00018839,2]
[373381438,1752978644469,-460.0,0.0001884,2]
[373381439,1752978644478,-460.0,0.0001884,2]
[373381440,1752978644487,-547.95,0.0001884,2]
[373381441,1752978644496,-837.28,0.00018841,2]
[373381442,1752978644505,-460.0,0.00018841,2]
[373381443,1752978644514,-460.0,0.00018841,2]
[373381444,1752978644523,-460.0,0.00018841,2]
[373381445,1752978644534,-460.0,0.00018841,2]
[373381446,1752978644543,-460.0,0.00018841,2]
[373381447,1752978644552,-880.58,0.00018841,2]
[373381448,1752978644560,-556.81308536,0.00018841,2]
[373381449,1752978644569,-460.0,0.00018841,2]
[373381450,1752978644578,-466.74089404,0.00018841,2]
[373381451,1752978644587,-460.0,0.00018841,2]
[373381452,1752978644596,-460.0,0.00018841,2]
[373381453,1752978644605,-1578.93,0.00018841,2]
[373381454,1752978644616,-460.0,0.00018841,2]
[373381455,1752978644625,-460.0,0.00018841,2]
[373381456,1752978644634,-469.74858731,0.00018841,2]
[373381457,1752978644643,-470.71805385,0.00018841,2]
[373381458,1752978644652,-467.040688,0.00018841,2]
[373381459,1752978644664,-467.837191,0.00018841,2]
[373381460,1752978644673,-278.21981366,0.00018842,2]
[373381461,1752978644683,-479.93187865,0.00018842,2]
[373381462,1752978644692,-482.5075463,0.00018842,2]
[373381463,1752978644702,-460.0,0.00018842,2]
[373381464,1752978644711,-460.0,0.00018842,2]
[373381465,1752978644721,-460.0,0.00018842,2]
[373381466,1752978644730,-460.0,0.00018842,2]
[373381467,1752978644740,-460.0,0.00018842,2]
[373381468,1752978644749,-460.0,0.00018842,2]
[373381469,1752978644759,-460.0,0.00018842,2]
[373381470,1752978644767,-460.0,0.00018842,2]
[373381471,1752978644776,-460.0,0.00018842,2]
[373381472,1752978644786,-460.0,0.00018842,2]
[373381473,1752978644796,-460.0,0.00018842,2]
[373381474,1752978644805,-460.0,0.00018842,2]
[373381475,1752978644814,-460.0,0.00018842,2]
[373381476,1752978644823,-500.0,0.00018843,2]
[373381477,1752978644832,-164.60040062,0.00018843,2]
[373381478,1752978644841,-152.27942809,0.00018843,2]
[373381479,1752978644850,-460.0,0.00018843,2]
[373381480,1752978644860,-460.0,0.00018843,2]
[373381481,1752978644869,-466.580985,0.00018843,2]
[373381482,1752978644878,-460.0,0.00018843,2]
[373381483,1752978644887,-460.0,0.00018843,2]
[373381484,1752978644896,-460.0,0.00018843,2]
[373381485,1752978644905,-460.0,0.00018843,2]
[373381486,1752978644914,-460.0,0.00018843,2]
[373381487,1752978644923,-738.46,0.00018843,2]
[373381488,1752978644932,-460.0,0.00018843,2]
[373381489,1752978644941,-460.0,0.00018843,2]
[373381490,1752978645097,-460.0,0.00018843,2]
[373381491,1752978645106,-470.30874864,0.00018843,2]
[373381492,1752978645116,-468.78836688,0.00018843,2]
[373381493,1752978645125,-225.18408219,0.00018843,2]
[373381494,1752978645134,-460.0,0.00018843,2]
[373381495,1752978645143,-564.42,0.00018843,2]
[373381496,1752978645152,-460.0,0.00018843,2]
[373381497,1752978645161,-462.61809028,0.00018843,2]
[373381498,1752978645170,-460.0,0.00018843,2]
[373381499,1752978645179,-460.0,0.00018843,2]
[373381500,1752978645189,-460.0,0.00018843,2]
[373381501,1752978645198,-460.0,0.00018843,2]
[373381502,1752978645207,-460.0,0.00018843,2]
[373381503,1752978645217,-460.0,0.00018843,2]
[373381504,1752978645226,-460.0,0.00018844,2]
[373381505,1752978645235,-460.0,0.00018844,2]
[373381506,1752978645244,-460.0,0.00018844,2]
[373381507,1752978645253,-752.11,0.00018844,2]
[373381508,1752978645263,-468.25857398,0.00018844,2]
[373381509,1752978645271,-460.0,0.00018844,2]
[373381510,1752978645281,-463.01106057,0.00018844,2]
[373381511,1752978645290,-291.46808476,0.00018844,2]
[373381512,1752978645299,-460.0,0.00018844,2]
[373381513,1752978645309,-460.0,0.00018844,2]
[373381514,1752978645318,-152.537099,0.00018845,2]
[373381515,1752978645328,-151.0,0.00018845,2]
[373381516,1752978645338,-461.91004627,0.00018845,2]
[373381517,1752978645347,-466.62006278,0.00018845,2]
[373381518,1752978645356,-752.11,0.00018845,2]
[373381519,1752978645366,-460.0,0.00018845,2]
[373381520,1752978645375,-545.85,0.00018845,2]
[373381521,1752978645384,-460.0,0.00018845,2]
[373381522,1752978645394,-460.0,0.00018845,2]
[373381523,1752978645403,-460.0,0.00018845,2]
[373381524,1752978645412,-460.0,0.00018845,2]
[373381525,1752978645421,-460.0,0.00018845,2]
[373381526,1752978645430,-460.0,0.00018845,2]
[373381527,1752978645439,-1511.85,0.00018845,2]
[373381528,1752978645448,-460.0,0.00018845,2]
[373381529,1752978645457,-460.0,0.00018845,2]
[373381530,1752978645467,-460.0,0.00018845,2]
[373381531,1752978645476,-752.11,0.00018866,2]
[373381532,1752978645485,-576.5,0.00018866,2]
[373381533,1752978645495,-752.11,0.00018867,2]
[373381534,1752978645504,-751.33,0.00018867,2]
[373381535,1752978645513,-460.0,0.00018867,2]
[373381536,1752978645522,-460.0,0.00018867,2]
[373381537,1752978645532,-513.12,0.00018868,2]
[373381538,1752978645541,-752.11,0.00018871,2]
[373381539,1752978645550,-752.11,0.00018899,2]
[373381540,1752978645559,-150.0,0.000189,2]
[373381541,1752978645568,-8611.8915742,0.000189,2]
[373381542,1752978645576,-460.0,0.00019114,2]
[373381543,1752978645586,-547.95,0.00019114,2]
[373381544,1752978645595,-837.28,0.00019115,2]
[373381545,1752978645605,-460.0,0.00019115,2]
[373381546,1752978645615,-460.0,0.00019115,2]
[373381547,1752978645624,-880.58,0.00019115,2]
[373381548,1752978645633,-479.54308358,0.00019115,2]
[373381549,1752978645642,-460.0,0.00019115,2]
[373381550,1752978645651,-1578.93,0.00019115,2]
[373381551,1752978645662,-460.0,0.00019115,2]
[373381552,1752978645673,-460.0,0.00019115,2]
[373381553,1752978645683,-460.0,0.00019116,2]
[373381554,1752978645692,-474.8745027,0.00019116,2]
[373381555,1752978645701,-460.0,0.00019116,2]
[373381556,1752978645712,-460.0,0.00019116,2]
[373381557,1752978645722,-460.0,0.00019116,2]
[373381558,1752978645731,-473.06424975,0.00019116,2]
[373381559,1752978645742,-460.0,0.00019116,2]
[373381560,1752978645752,-500.0,0.00019117,2]
[373381561,1752978645761,-460.0,0.00019117,2]
[373381562,1752978645771,-460.0,0.00019117,2]
[373381563,1752978645780,-738.46,0.00019117,2]
[373381564,1752978645790,-581.34848106,0.00019117,2]
[373381565,1752978645799,-460.0,0.00019117,2]
[373381566,1752978645809,-564.42,0.00019117,2]
[373381567,1752978645818,-460.0,0.00019117,2]
[373381568,1752978645828,-460.0,0.00019117,2]
[373381570,1752978645837,-460.0,0.00019117,2]
[373381571,1752978645847,-460.0,0.00019117,2]
[373381572,1752978645856,-460.0,0.00019117,2]
[373381573,1752978645865,-460.0,0.00019117,2]
[373381574,1752978645874,-460.0,0.00019118,2]
[373381575,1752978645884,-477.03162213,0.00019118,2]
[373381576,1752978645897,-460.0,0.00019118,2]
[373381577,1752978645907,-752.11,0.00019119,2]
[373381578,1752978645916,-460.0,0.00019119,2]
[373381579,1752978645926,-545.85,0.00019119,2]
[373381580,1752978645936,-460.0,0.00019119,2]
[373381581,1752978645945,-460.0,0.00019119,2]
[373381582,1752978645955,-1511.85,0.00019119,2]
[373381583,1752978645964,-460.0,0.00019119,2]
[373381584,1752978645974,-132422.6638288,0.0001912,2]
[373381585,1752978645984,-504.86519393,0.00019121,2]
[373381586,1752978645993,-209.70765003,0.00019121,2]
[373381587,1752978646003,-1000.0,0.00019121,2]
[373381588,1752978646012,-576.5,0.0001914,2]
[373381589,1752978646022,-752.11,0.00019141,2]
[373381590,1752978646031,-752.11,0.00019141,2]
[373381591,1752978646043,-752.11,0.00019141,2]
[373381592,1752978646052,-752.11,0.00019141,2]
[373381593,1752978646062,-752.24823439,0.00019141,2]
[373381594,1752978646071,-751.33,0.00019141,2]
[373381595,1752978646080,-460.0,0.00019141,2]
[373381596,1752978646089,-460.0,0.00019141,2]
[373381597,1752978646099,-8611.89157407,0.00019141,2]
[373381598,1752978646109,-513.12,0.00019142,2]
[373381599,1752978646118,-500.0,0.00019145,2]
[373381600,1752978646127,-502.24900554,0.00019145,2]
[373381601,1752978646137,-500.0,0.00019149,2]
[373381602,1752978646146,-151.0,0.00019149,2]
[373381603,1752978646155,-500.0,0.00019149,2]
[373381604,1752978646165,-151.66254631,0.00019149,2]
[373381605,1752978646174,-178.597975,0.00019178,2]
[373381606,1752978646184,-4872.15893033,0.00019329,2]
[373381607,1752978646193,-500.0,0.00019339,2]
[373381608,1752978646202,-207.4,0.00019357,2]
[373381609,1752978646212,-8611.89157407,0.00019383,2]
[373381610,1752978646221,-222.19842,0.00019388,2]
[373381611,1752978646230,-547.95,0.00019388,2]
[373381612,1752978646240,-837.28,0.00019389,2]
[373381613,1752978646249,-460.0,0.00019389,2]
[373381614,1752978646259,-481.27129361,0.00019389,2]
[373381615,1752978646268,-880.58,0.00019389,2]
[373381616,1752978646278,-460.0,0.00019389,2]
[373381617,1752978646289,-1578.93,0.00019389,2]